fUST/lending_fUST_20240802
["ID","MTS","AMOUNT","RATE_DAILY","PERIOD"]
[333873551,1722586240877,-500.0,0.00013972,2]
[333873552,1722586240887,-500.0,0.00013972,2]
[333873553,1722586240897,-500.0,0.00013972,2]
[333873554,1722586240907,-500.0,0.00013972,2]
[333873555,1722586240918,-500.0,0.00013972,2]
[333873556,1722586240928,-500.0,0.00013972,2]
[333873557,1722586240938,-500.0,0.00013972,2]
[333873558,1722586240951,-500.0,0.00013972,2]
[333873559,1722586240961,-500.0,0.00013972,2]
[333873560,1722586240970,-500.0,0.00013972,2]
[333873561,1722586240979,-500.0,0.00013972,2]
[333873562,1722586240989,-500.0,0.00013972,2]
[333873563,1722586240999,-500.0,0.00013972,2]
[333873564,1722586241009,-500.0,0.00013972,2]
[333873565,1722586241019,-1180.59,0.00013972,2]
[333873566,1722586241028,-500.0,0.00013972,2]
[333873567,1722586241040,-500.0,0.00013972,2]
[333873568,1722586241050,-500.0,0.00013972,2]
[333873569,1722586241060,-500.0,0.00013972,2]
[333873570,1722586241069,-500.0,0.00013972,2]
[333873571,1722586241079,-1672.11,0.00013972,2]
[333873572,1722586241088,-500.0,0.00013972,2]
[333873573,1722586241097,-907.12961981,0.00014146,2]
[333873574,1722586241107,-500.0,0.00014235,2]
[333873575,1722586241117,-48387.5585408,0.00014236,2]
[333873576,1722586241126,-500.0,0.00014245,2]
[333873577,1722586241135,-500.0,0.00014246,2]
[333873578,1722586241145,-500.0,0.00014246,2]
[333873579,1722586241155,-500.0,0.00014246,2]
[333873580,1722586241165,-577.92,0.00014246,2]
[333873581,1722586241174,-500.0,0.00014246,2]
[333873582,1722586241183,-500.0,0.00014246,2]
[333873583,1722586241193,-500.0,0.00014246,2]
[333873584,1722586241202,-500.0,0.00014246,2]
[333873585,1722586241212,-200.88,0.00014246,2]
[333873586,1722586241222,-500.0,0.00014246,2]
[333873587,1722586241231,-500.0,0.00014246,2]
[333873588,1722586241241,-500.0,0.00014246,2]
[333873589,1722586241251,-500.0,0.00014246,2]
[333873590,1722586241260,-500.0,0.00014246,2]
[333873591,1722586241270,-500.0,0.00014246,2]
[333873592,1722586241280,-500.0,0.00014246,2]
[333873593,1722586241289,-500.0,0.00014246,2]
[333873594,1722586241299,-500.0,0.00014246,2]
[333873595,1722586241308,-500.0,0.00014246,2]
[333873596,1722586241318,-500.0,0.00014246,2]
[333873597,1722586241327,-500.0,0.00014246,2]
[333873598,1722586241337,-1703.06,0.00014246,2]
[333873599,1722586241348,-500.0,0.00014246,2]
[333873600,1722586241367,-500.0,0.00014246,2]
[333873601,1722586241376,-681.41,0.00014246,2]
[333873602,1722586241385,-500.0,0.00014246,2]
[333873603,1722586241396,-500.0,0.00014246,2]
[333873604,1722586241405,-500.0,0.00014246,2]
[333873605,1722586241415,-500.0,0.00014246,2]
[333873606,1722586241425,-500.0,0.00014246,2]
[333873607,1722586241434,-767.05,0.00014246,2]
[333873608,1722586241444,-1485.79,0.00014246,2]
[333873609,1722586241453,-500.0,0.00014246,2]
[333873610,1722586241463,-255.54760076,0.00014246,2]
[333873611,1722586241472,-252.44272161,0.00014246,2]
[333873612,1722586241481,-500.0,0.00014246,2]
[333873613,1722586241491,-500.0,0.00014246,2]
[333873614,1722586241500,-775.88,0.00014246,2]
[333873615,1722586241510,-500.0,0.00014246,2]
[333873616,1722586241519,-500.0,0.00014246,2]
[333873617,1722586241529,-500.0,0.00014246,2]
[333873618,1722586241539,-500.0,0.00014246,2]
[333873619,1722586241548,-500.0,0.00014246,2]
[333873620,1722586241558,-500.0,0.00014246,2]
[333873621,1722586241568,-500.0,0.00014246,2]
[333873622,1722586241577,-500.0,0.00014246,2]
[333873623,1722586241587,-500.0,0.00014246,2]
[333873624,1722586241596,-500.0,0.00014246,2]
[333873625,1722586241606,-500.0,0.00014246,2]
[333873626,1722586241615,-500.0,0.00014246,2]
[333873627,1722586241625,-500.0,0.00014246,2]
[333873628,1722586241635,-500.0,0.00014246,2]
[333873629,1722586241647,-500.0,0.00014246,2]
[333873630,1722586241658,-1180.59,0.00014246,2]
[333873631,1722586241668,-421.12444041,0.00014246,2]
[333873632,1722586241678,-500.0,0.00014246,2]
[333873633,1722586241688,-500.0,0.00014246,2]
[333873634,1722586241698,-500.0,0.00014246,2]
[333873635,1722586241708,-500.0,0.00014246,2]
[333873636,1722586241717,-1672.11,0.00014246,2]
[333873637,1722586241727,-500.0,0.00014246,2]
[333873638,1722586241737,-712.5,0.00014247,2]
[333873639,1722586241746,-566.828071,0.00014247,2]
[333873640,1722586241756,-907.12961977,0.00014283,2]
[333873641,1722586241767,-907.12961977,0.0001442,2]
[333873642,1722586241777,-48387.5585408,0.0001451,2]
[333873643,1722586241786,-525.166268,0.00014519,2]
[333873644,1722586241796,-500.0,0.00014519,2]
[333873645,1722586241806,-193.91569602,0.00014519,2]
[333873646,1722586241816,-500.0,0.00014519,2]
[333873647,1722586241825,-618.03890749,0.00014519,2]
[333873648,1722586241836,-500.0,0.00014519,2]
[333873649,1722586241847,-500.0,0.00014519,2]
[333873650,1722586241858,-500.0,0.0001452,2]
[333873651,1722586241869,-500.0,0.0001452,2]
[333873652,1722586241883,-500.0,0.0001452,2]
[333873653,1722586241895,-577.92,0.0001452,2]
[333873654,1722586241906,-500.0,0.0001452,2]
[333873655,1722586241915,-255.72890334,0.0001452,2]
[333873656,1722586241925,-500.0,0.0001452,2]
[333873657,1722586241937,-511.27655133,0.0001452,2]
[333873658,1722586241950,-500.0,0.0001452,2]
[333873659,1722586241961,-500.0,0.0001452,2]
[333873660,1722586241972,-500.0,0.0001452,2]
[333873661,1722586241981,-500.0,0.0001452,2]
[333873662,1722586241992,-500.0,0.0001452,2]
[333873663,1722586242003,-500.0,0.0001452,2]
[333873664,1722586242012,-500.0,0.0001452,2]
[333873665,1722586242022,-500.0,0.0001452,2]
[333873666,1722586242031,-500.0,0.0001452,2]
[333873667,1722586242043,-500.0,0.0001452,2]
[333873668,1722586242052,-500.0,0.0001452,2]
[333873669,1722586242062,-500.0,0.0001452,2]
[333873670,1722586242072,-1703.06,0.0001452,2]
[333873671,1722586242081,-500.0,0.0001452,2]
[333873672,1722586242091,-500.0,0.0001452,2]
[333873673,1722586242101,-681.41,0.0001452,2]
[333873674,1722586242110,-500.0,0.0001452,2]
[333873675,1722586242120,-500.0,0.0001452,2]
[333873676,1722586242130,-500.0,0.0001452,2]
[333873677,1722586242141,-500.0,0.0001452,2]
[333873678,1722586242151,-500.0,0.0001452,2]
[333873679,1722586242161,-767.05,0.0001452,2]
[333873680,1722586242171,-1485.79,0.0001452,2]
[333873681,1722586242181,-500.0,0.0001452,2]
[333873682,1722586242190,-500.0,0.0001452,2]
[333873683,1722586242200,-500.0,0.0001452,2]
[333873684,1722586242209,-775.88,0.0001452,2]
[333873685,1722586242219,-500.0,0.0001452,2]
[333873686,1722586242228,-500.0,0.0001452,2]
[333873687,1722586242239,-500.0,0.0001452,2]
[333873688,1722586242249,-500.0,0.0001452,2]
[333873689,1722586242357,-500.0,0.0001452,2]
[333873690,1722586242367,-500.0,0.0001452,2]
[333873691,1722586242378,-500.0,0.0001452,2]
[333873692,1722586242389,-295.97,0.0001452,2]
[333873693,1722586242398,-500.0,0.0001452,2]
[333873694,1722586242407,-500.0,0.0001452,2]
[333873695,1722586242417,-500.0,0.0001452,2]
[333873696,1722586242427,-500.0,0.0001452,2]
[333873697,1722586242436,-500.0,0.0001452,2]
[333873698,1722586242446,-500.0,0.0001452,2]
[333873699,1722586242455,-500.0,0.0001452,2]
[333873700,1722586242464,-1180.59,0.0001452,2]
[333873701,1722586242473,-500.0,0.0001452,2]
[333873702,1722586242483,-500.0,0.0001452,2]
[333873703,1722586242493,-500.0,0.0001452,2]
[333873704,1722586242504,-500.0,0.0001452,2]
[333873705,1722586242513,-1672.11,0.0001452,2]
[333873706,1722586242523,-500.0,0.0001452,2]
[333873707,1722586242532,-150.0,0.00014536,2]
[333873708,1722586242542,-506.0,0.00014536,2]
[333873709,1722586242551,-1410.0,0.00014536,2]
[333873710,1722586242561,-907.12961977,0.00014557,2]
[333873711,1722586242571,-15748.63010074,0.0001458,2]
[333873748,1722586246475,-500.0,0.00013698,2]
[333873749,1722586246486,-298.59,0.00013972,2]
[333873750,1722586246496,-10719.31127873,0.0001458,2]
[333873751,1722586246531,-21919.61716133,0.0001458,2]
[333873752,1722586246541,-8953.31060833,0.0001459,2]
[333873799,1722587438348,-300.0,0.00012489,2]
[333873800,1722587438358,-300.0,0.00012489,2]
[333873801,1722587438367,-13055.7218031,0.0001249,2]
[333873802,1722587438376,-161.341157,0.00012986,2]
[333873803,1722587438386,-4468.94040614,0.00013598,2]
[333873804,1722587438395,-1685.5031226,0.00013686,2]
[333873805,1722587438404,-3961.24373402,0.00013688,2]
[333873806,1722587438500,-52628.93863878,0.00013688,2]
[333873808,1722587438510,-2079.31,0.00013697,2]
[333873812,1722587438521,-2079.31,0.00013697,2]
[333873816,1722587438530,-500.76357155,0.00013698,2]
[333873818,1722587438540,-501.6702609,0.00013698,2]
[333873819,1722587438550,-509.75645029,0.00013698,2]
[333873820,1722587438560,-504.21082443,0.00013698,2]
[333873821,1722587438569,-501.17906568,0.00013698,2]
[333873822,1722587438579,-500.0,0.00013698,2]
[333873823,1722587438588,-500.0,0.00013698,2]
[333873824,1722587438597,-500.0,0.00013698,2]
[333873825,1722587438606,-500.0,0.00013698,2]
[333873826,1722587438616,-516.60227441,0.00013698,2]
[333873827,1722587438625,-506.79672606,0.00013698,2]
[333873828,1722587438634,-500.0,0.00013698,2]
[333873829,1722587438643,-500.0,0.00013698,2]
[333873830,1722587438653,-500.0,0.00013698,2]
[333873831,1722587438662,-501.23449232,0.00013698,2]
[333873832,1722587438674,-500.0,0.00013698,2]
[333873833,1722587438683,-500.0,0.00013698,2]
[333873834,1722587438692,-500.0,0.00013698,2]
[333873835,1722587438702,-500.0,0.00013698,2]
[333873836,1722587438711,-500.0,0.00013698,2]
[333873837,1722587438720,-500.0,0.00013698,2]
[333873838,1722587438730,-497.88815014,0.00013698,2]
[333873839,1722587438739,-507.41428649,0.00013698,2]
[333873840,1722587438749,-500.0,0.00013698,2]
[333873841,1722587438759,-500.0,0.00013698,2]
[333873842,1722587438768,-500.0,0.00013698,2]
[333873843,1722587438777,-500.32515854,0.00013698,2]
[333873844,1722587438786,-500.0,0.00013698,2]
[333873845,1722587438796,-500.0,0.00013698,2]
[333873846,1722587438805,-500.0,0.00013698,2]
[333873847,1722587438814,-500.0,0.00013698,2]
[333873848,1722587438824,-508.24392574,0.00013698,2]
[333873849,1722587438833,-500.0,0.00013698,2]
[333873850,1722587438843,-500.0,0.00013698,2]
[333873851,1722587438853,-501.24855509,0.00013698,2]
[333873852,1722587438862,-500.0,0.00013698,2]
[333873853,1722587438873,-500.0,0.00013698,2]
[333873854,1722587438883,-500.0,0.00013698,2]
[333873855,1722587438895,-500.62823982,0.00013698,2]
[333873856,1722587438906,-500.0,0.00013698,2]
[333873857,1722587438918,-500.0,0.00013698,2]
[333873858,1722587438927,-522.56729395,0.00013698,2]
[333873859,1722587438937,-500.0,0.00013698,2]
[333873860,1722587438947,-500.0,0.00013698,2]
[333873861,1722587438956,-501.33106854,0.00013698,2]
[333873862,1722587438966,-500.0,0.00013698,2]
[333873863,1722587438977,-506.93568338,0.00013698,2]
[333873864,1722587438987,-223.97,0.00013698,2]
[333873865,1722587438998,-500.0,0.00013698,2]
[333873866,1722587439007,-503.60558488,0.00013698,2]
[333873867,1722587439017,-500.0,0.00013698,2]
[333873868,1722587439027,-460.82610274,0.00013698,2]
[333873869,1722587439037,-438.21680693,0.00013698,2]
[333873870,1722587439047,-508.03210727,0.00013698,2]
[333873871,1722587439059,-503.18757352,0.00013698,2]
[333873872,1722587439070,-500.0,0.00013698,2]
[333873873,1722587439079,-500.0,0.00013698,2]
[333873874,1722587439090,-500.0,0.00013698,2]
[333873875,1722587439100,-500.0,0.00013698,2]
[333873876,1722587439110,-500.0,0.00013698,2]
[333873877,1722587439120,-500.0,0.00013698,2]
[333873878,1722587439132,-500.0,0.00013698,2]
[333873879,1722587439142,-198.02,0.00013698,2]
[333873880,1722587439152,-500.0,0.00013698,2]
[333873881,1722587439164,-500.0,0.00013698,2]
[333873882,1722587439175,-500.0,0.00013698,2]
[333873883,1722587439184,-500.0,0.00013698,2]
[333873884,1722587439193,-500.0,0.00013698,2]
[333873885,1722587439203,-227.88386343,0.00013698,2]
[333873886,1722587439214,-500.0,0.00013698,2]
[333873887,1722587439224,-500.0,0.00013698,2]
[333873888,1722587439233,-500.0,0.00013698,2]
[333873889,1722587439247,-218.18326497,0.00013698,2]
[333873890,1722587439258,-506.03378128,0.00013698,2]
[333873891,1722587439268,-500.0,0.00013698,2]
[333873892,1722587439279,-500.0,0.00013698,2]
[333873893,1722587439292,-500.0,0.00013698,2]
[333873894,1722587439303,-500.0,0.00013698,2]
[333873895,1722587439313,-500.0,0.00013698,2]
[333873896,1722587439326,-500.0,0.00013698,2]
[333873897,1722587439337,-500.0,0.00013698,2]
[333873898,1722587439349,-500.0,0.00013698,2]
[333873899,1722587439360,-500.0,0.00013698,2]
[333873900,1722587439370,-500.0,0.00013698,2]
[333873901,1722587439380,-500.0,0.00013698,2]
[333873902,1722587439390,-500.0,0.00013698,2]
[333873903,1722587439401,-456.35905197,0.00013698,2]
[333873904,1722587439411,-500.0,0.00013698,2]
[333873905,1722587439423,-500.0,0.00013698,2]
[333873906,1722587439432,-500.0,0.00013698,2]
[333873907,1722587439441,-587.85,0.00013698,2]
[333873908,1722587439450,-508.87455546,0.00013698,2]
[333873909,1722587439459,-500.0,0.00013698,2]
[333873910,1722587439468,-500.0,0.00013698,2]
[333873911,1722587439478,-286.27817444,0.00013698,2]
[333873912,1722587439487,-500.0,0.00013698,2]
[333873913,1722587439496,-460.45151269,0.00013698,2]
[333873914,1722587439505,-500.0,0.00013698,2]
[333873915,1722587439515,-500.0,0.00013698,2]
[333873916,1722587439524,-506.05120005,0.00013698,2]
[333873917,1722587439533,-500.0,0.00013698,2]
[333873918,1722587439542,-500.0,0.00013698,2]
[333873919,1722587439551,-518.36868176,0.00013698,2]
[333873920,1722587439560,-500.0,0.00013698,2]
[333873921,1722587439569,-500.0,0.00013698,2]
[333873922,1722587439578,-500.0,0.00013698,2]
[333873923,1722587439588,-500.0,0.00013698,2]
[333873924,1722587439598,-500.0,0.00013698,2]
[333873925,1722587439608,-500.0,0.00013698,2]
[333873926,1722587439619,-500.0,0.00013698,2]
[333873927,1722587439629,-500.0,0.00013698,2]
[333873928,1722587439639,-500.0,0.00013698,2]
[333873929,1722587439649,-500.0,0.00013698,2]
[333873930,1722587439660,-500.0,0.00013698,2]
[333873931,1722587439671,-1579.22,0.00013698,2]
[333873932,1722587439681,-500.0,0.00013698,2]
[333873933,1722587439691,-500.0,0.00013698,2]
[333873934,1722587439701,-500.0,0.00013698,2]
[333873935,1722587439711,-500.0,0.00013698,2]
[333873936,1722587439721,-500.0,0.00013698,2]
[333873937,1722587439731,-500.0,0.00013698,2]
[333873938,1722587439741,-1819.94,0.00013698,2]
[333873939,1722587439750,-500.0,0.00013698,2]
[333873940,1722587439760,-500.0,0.00013698,2]
[333873941,1722587439768,-500.0,0.00013698,2]
[333873942,1722587439777,-688.09,0.00013698,2]
[333873943,1722587439787,-500.0,0.00013698,2]
[333873944,1722587439796,-477.67427206,0.00013698,2]
[333873945,1722587439806,-500.0,0.00013698,2]
[333873946,1722587439815,-500.0,0.00013698,2]
[333873947,1722587439825,-500.0,0.00013698,2]
[333873948,1722587439835,-500.0,0.00013698,2]
[333873949,1722587439844,-500.0,0.00013698,2]
[333873950,1722587439854,-500.0,0.00013698,2]
[333873951,1722587439863,-500.0,0.00013698,2]
[333873952,1722587439873,-2070.88,0.00013698,2]
[333873953,1722587439882,-470.00421233,0.00013698,2]
[333873954,1722587439892,-500.0,0.00013698,2]
[333873955,1722587439902,-505.047797,0.00013698,2]
[333873956,1722587439911,-500.0,0.00013698,2]
[333873957,1722587439924,-500.0,0.00013698,2]
[333873958,1722587439933,-164.26021029,0.00013698,2]
[333873959,1722587439942,-500.0,0.00013698,2]
[333873960,1722587439952,-500.0,0.00013698,2]
[333873961,1722587439962,-500.0,0.00013698,2]
[333873962,1722587439971,-500.0,0.00013698,2]
[333873963,1722587439980,-500.0,0.00013698,2]
[333873964,1722587439989,-500.0,0.00013698,2]
[333873965,1722587439999,-500.0,0.00013698,2]
[333873967,1722587440008,-504.30618245,0.00013698,2]
[333873969,1722587440017,-500.0,0.00013698,2]
[333873970,1722587440026,-500.0,0.00013698,2]
[333873971,1722587440036,-799.01,0.00013698,2]
[333873972,1722587440045,-1485.79,0.00013698,2]
[333873973,1722587440054,-500.0,0.00013698,2]
[333873974,1722587440064,-500.0,0.00013698,2]
[333873975,1722587440073,-504.37885215,0.00013698,2]
[333873976,1722587440083,-252.11695064,0.00013698,2]
[333873977,1722587440092,-500.0,0.00013698,2]
[333873978,1722587440101,-500.0,0.00013698,2]
[333873979,1722587440110,-500.0,0.00013698,2]
[333873980,1722587440120,-500.0,0.00013698,2]
[333873981,1722587440130,-500.0,0.00013698,2]
[333873982,1722587440139,-500.0,0.00013698,2]
[333873983,1722587440149,-500.0,0.00013698,2]
[333873984,1722587440159,-732.78,0.00013698,2]
[333873985,1722587440169,-500.0,0.00013698,2]
[333873987,1722587440179,-500.0,0.00013698,2]
[333873988,1722587440188,-500.0,0.00013698,2]
[333873989,1722587440197,-500.0,0.00013698,2]
[333873990,1722587440207,-500.0,0.00013698,2]
[333873991,1722587440216,-500.0,0.00013698,2]
[333873992,1722587440226,-507.79757809,0.00013698,2]
[333873993,1722587440235,-500.0,0.00013698,2]
[333873994,1722587440248,-500.0,0.00013698,2]
[333873995,1722587440266,-500.0,0.00013698,2]
[333873996,1722587440277,-500.0,0.00013698,2]
[333873997,1722587440287,-500.0,0.00013698,2]
[333873998,1722587440296,-500.0,0.00013698,2]
[333873999,1722587440307,-500.2630499,0.00013698,2]
[333874000,1722587440317,-500.0,0.00013698,2]
[333874001,1722587440326,-509.23867115,0.00013698,2]
[333874002,1722587440336,-500.0,0.00013698,2]
[333874003,1722587440346,-500.0,0.00013698,2]
[333874004,1722587440355,-500.0,0.00013698,2]
[333874005,1722587440365,-500.0,0.00013698,2]
[333874006,1722587440376,-500.0,0.00013698,2]
[333874007,1722587440386,-1261.61,0.00013698,2]
[333874008,1722587440396,-500.0,0.00013698,2]
[333874009,1722587440407,-500.0,0.00013698,2]
[333874010,1722587440419,-500.0,0.00013698,2]
[333874011,1722587440430,-500.0,0.00013698,2]
[333874012,1722587440440,-500.0,0.00013698,2]
[333874013,1722587440449,-500.0,0.00013698,2]
[333874014,1722587440458,-500.0,0.00013698,2]
[333874015,1722587440467,-500.0,0.00013698,2]
[333874016,1722587440477,-500.0,0.00013698,2]
[333874019,1722587440487,-500.0,0.00013698,2]
[333874020,1722587440497,-500.0,0.00013698,2]
[333874022,1722587440506,-500.0,0.00013698,2]
[333874024,1722587440515,-500.0,0.00013698,2]
[333874026,1722587440525,-283.14,0.00013698,2]
[333874027,1722587440535,-500.0,0.00013698,2]
[333874028,1722587440544,-500.0,0.00013698,2]
[333874029,1722587440554,-500.0,0.00013698,2]
[333874030,1722587440565,-500.0,0.00013698,2]
[333874031,1722587440574,-505.70967278,0.00013698,2]
[333874032,1722587440584,-500.0,0.00013698,2]
[333874033,1722587440593,-500.0,0.00013698,2]
[333874034,1722587440603,-287.39525698,0.00013698,2]
[333874035,1722587440612,-500.0,0.00013698,2]
[333874036,1722587440621,-500.0,0.00013698,2]
[333874037,1722587440631,-500.0,0.00013698,2]
[333874038,1722587440640,-500.0,0.00013698,2]
[333874039,1722587440649,-500.0,0.00013698,2]
[333874040,1722587440659,-500.0,0.00013698,2]
[333874041,1722587440671,-483.25706206,0.00013698,2]
[333874042,1722587440682,-641.67,0.00013698,2]
[333874043,1722587440693,-500.0,0.00013698,2]
[333874044,1722587440703,-153.75,0.00013698,2]
[333874045,1722587440714,-500.0,0.00013698,2]
[333874046,1722587440723,-553.22,0.00013698,2]
[333874047,1722587440733,-290.73,0.00013698,2]
[333874048,1722587440742,-500.0,0.00013698,2]
[333874049,1722587440754,-500.0,0.00013698,2]
[333874050,1722587440763,-500.0,0.00013698,2]
[333874051,1722587440773,-500.0,0.00013698,2]
[333874052,1722587440935,-500.0,0.00013698,2]
[333874053,1722587440946,-267.7451563,0.00013699,2]
[333874054,1722587440957,-3000.0,0.00013699,2]
[333874055,1722587440966,-348.2575741,0.00013699,2]
[333874056,1722587440979,-300.0,0.00013703,2]
[333874057,1722587440989,-420.0,0.00013737,2]
[333874058,1722587440999,-4468.94040614,0.00013821,2]
[333874059,1722587441009,-2079.31,0.0001387,2]
[333874060,1722587441019,-2079.31,0.00013961,2]
[333874061,1722587441031,-200.48393973,0.00013961,2]
[333874062,1722587441041,-170.97678705,0.00013961,2]
[333874063,1722587441051,-553.13283947,0.00013961,2]
[333874064,1722587441061,-235.33765639,0.00013961,2]
[333874065,1722587441070,-500.0,0.00013961,2]
[333874066,1722587441082,-500.0,0.00013961,2]
[333874067,1722587441092,-500.0,0.00013961,2]
[333874068,1722587441102,-500.0,0.00013961,2]
[333874069,1722587441111,-255.38043548,0.00013961,2]
[333874070,1722587441122,-500.0,0.00013961,2]
[333874071,1722587441132,-500.0,0.00013961,2]
[333874072,1722587441141,-500.0,0.00013961,2]
[333874073,1722587441151,-460.70314861,0.00013961,2]
[333874074,1722587441161,-372.6496412,0.00013961,2]
[333874075,1722587441173,-500.0,0.00013961,2]
[333874076,1722587441182,-500.0,0.00013961,2]
[333874077,1722587441192,-500.0,0.00013961,2]
[333874078,1722587441202,-406.23501674,0.00013961,2]
[333874079,1722587441211,-193.91569602,0.00013961,2]
[333874080,1722587441222,-56590.1823728,0.00013962,2]
[333874081,1722587441232,-500.0,0.00013971,2]
[333874082,1722587441245,-2079.31,0.00013971,2]
[333874083,1722587441261,-500.0,0.00013972,2]
[333874084,1722587441271,-500.0,0.00013972,2]
[333874085,1722587441283,-500.0,0.00013972,2]
[333874086,1722587441295,-500.0,0.00013972,2]
[333874087,1722587441305,-500.0,0.00013972,2]
[333874088,1722587441317,-500.0,0.00013972,2]
[333874089,1722587441327,-500.0,0.00013972,2]
[333874090,1722587441337,-500.0,0.00013972,2]
[333874091,1722587441347,-500.0,0.00013972,2]
[333874092,1722587441358,-500.0,0.00013972,2]
[333874093,1722587441368,-500.0,0.00013972,2]
[333874094,1722587441380,-481.33,0.00013972,2]
[333874095,1722587441390,-500.0,0.00013972,2]
[333874096,1722587441401,-500.0,0.00013972,2]
[333874097,1722587441412,-500.0,0.00013972,2]
[333874098,1722587441423,-500.0,0.00013972,2]
[333874099,1722587441432,-587.85,0.00013972,2]
[333874100,1722587441442,-500.0,0.00013972,2]
[333874101,1722587441451,-500.0,0.00013972,2]
[333874102,1722587441462,-500.0,0.00013972,2]
[333874103,1722587441471,-500.0,0.00013972,2]
[333874104,1722587441483,-500.0,0.00013972,2]
[333874105,1722587441492,-500.0,0.00013972,2]
[333874106,1722587441501,-500.0,0.00013972,2]
[333874107,1722587441511,-500.0,0.00013972,2]
[333874108,1722587441522,-1579.22,0.00013972,2]
[333874109,1722587441532,-500.0,0.00013972,2]
[333874110,1722587441543,-423.37282897,0.00013972,2]
[333874111,1722587441554,-500.0,0.00013972,2]
[333874112,1722587441564,-500.0,0.00013972,2]
[333874113,1722587441574,-1819.94,0.00013972,2]
[333874114,1722587441584,-500.0,0.00013972,2]
[333874115,1722587441594,-688.09,0.00013972,2]
[333874116,1722587441603,-500.0,0.00013972,2]
[333874117,1722587441614,-500.0,0.00013972,2]
[333874118,1722587441623,-500.0,0.00013972,2]
[333874119,1722587441636,-500.0,0.00013972,2]
[333874120,1722587441647,-500.0,0.00013972,2]
[333874121,1722587441657,-500.0,0.00013972,2]
[333874122,1722587441667,-500.0,0.00013972,2]
[333874123,1722587441677,-500.0,0.00013972,2]
[333874124,1722587441687,-2070.88,0.00013972,2]
[333874125,1722587441696,-500.0,0.00013972,2]
[333874126,1722587441706,-500.0,0.00013972,2]
[333874127,1722587441715,-500.0,0.00013972,2]
[333874128,1722587441725,-470.77,0.00013972,2]
[333874129,1722587441735,-500.0,0.00013972,2]
[333874130,1722587441746,-500.0,0.00013972,2]
[333874131,1722587441755,-500.0,0.00013972,2]
[333874132,1722587441764,-799.01,0.00013972,2]
[333874133,1722587441774,-1485.79,0.00013972,2]
[333874134,1722587441783,-500.0,0.00013972,2]
[333874135,1722587441794,-500.0,0.00013972,2]
[333874136,1722587441804,-500.0,0.00013972,2]
[333874137,1722587441813,-500.0,0.00013972,2]
[333874138,1722587441823,-500.0,0.00013972,2]
[333874139,1722587441833,-500.0,0.00013972,2]
[333874140,1722587441843,-732.78,0.00013972,2]
[333874141,1722587441853,-500.0,0.00013972,2]
[333874142,1722587441863,-500.0,0.00013972,2]
[333874143,1722587441872,-500.0,0.00013972,2]
[333874144,1722587441882,-500.0,0.00013972,2]
[333874145,1722587441892,-500.0,0.00013972,2]
[333874146,1722587441902,-500.0,0.00013972,2]
[333874147,1722587441912,-500.0,0.00013972,2]
[333874148,1722587441923,-500.0,0.00013972,2]